[Event "CZE-ch U10 2020"]
[Site "Kouty nad Desnou"]
[Date "2020.03.09"]
[Round "3.6"]
[White "Ruzicka, Oto"]
[Black "Stary, Vojtech"]
[Result "0-1"]
[ECO "C35"]
[WhiteElo "1168"]
[BlackElo "1559"]
[Annotator "NA"]
[PlyCount "102"]
[EventDate "2020.03.07"]
[EventCountry "CZE"]
[SourceTitle "playchess.com"]
[Source "ChessBase"]
[SourceQuality "1"]
[TimeControl "5400+30"]

1. e4 {[%emt 0:00:00]} e5 {[%emt 0:00:00]} 2. f4 {[%emt 0:00:00]} exf4 {[%emt 0:00:00]} 3. Nf3 {[%emt 0:00:00]} Be7 {[%emt 0:00:00]} 4. Bc4 {[%emt 0:00:40]} Bh4+ {[%emt 0:00:00]} 5. Kf1 {[%emt 0:00:39]} Be7 {[%emt 0:00:15]} 6. Nc3 {[%emt 0:01:55]} d6 {[%emt 0:04:39]} 7. d4 {[%emt 0:00:55]} Nf6 {[%emt 0:02:41]} 8. Bxf4 {[%emt 0:01:51]} O-O {[%emt 0:02:05]} 9. Ke2 {[%emt 0:02:01]} Bg4 {[%emt 0:06:22]} 10. Rf1 {[%emt 0:04:04]} Nbd7 {[%emt 0:04:08]} 11. a3 {[%emt 0:04:56]} Nb6 {[%emt 0:01:13]} 12. Ba2 {[%emt 0:00:40]} d5 {[%emt 0:02:23]} 13. Qd3 {[%emt 0:08:32]} dxe4 {[%emt 0:04:26]} 14. Nxe4 {[%emt 0:01:30]} Nbd5 {[%emt 0:01:58]} 15. Bg3 {[%emt 0:02:59]} c6 {[%emt 0:08:22]} 16. Kf2 {[%emt 0:02:21]} Nxe4+ {[%emt 0:05:03]} 17. Qxe4 {[%emt 0:02:15]} Be6 {[%emt 0:04:24]} 18. Kg1 {[%emt 0:06:05]} Bf6 {[%emt 0:06:33]} 19. Rad1 {[%emt 0:07:00]} Qb6 {[%emt 0:04:49]} 20. Bd6 {[%emt 0:07:37]} Rfd8 {[%emt 0:07:37]} 21. c4 {[%emt 0:08:07]} Rxd6 {[%emt 0:08:02]} 22. c5 {[%emt 0:02:44]} Qxb2 {[%emt 0:00:57]} 23. Rf2 {[%emt 0:03:31]} Qxa3 {[%emt 0:01:15]} 24. cxd6 {[%emt 0:03:52]} Qxd6 {[%emt 0:00:38]} 25. Ne5 {[%emt 0:02:17]} Nc3 {[%emt 0:04:45]} 26. Qe1 {[%emt 0:11:13]} Nxd1 {[%emt 0:00:59]} 27. Qxd1 {[%emt 0:00:41]} Bxa2 {[%emt 0:02:38]} 28. Nf3 {[%emt 0:01:38]} Be6 {[%emt 0:01:54]} 29. Rb2 {[%emt 0:00:41]} Qd7 {[%emt 0:02:28]} 30. Rd2 {[%emt 0:01:07]} Bg4 {[%emt 0:01:26]} 31. Ne5 {[%emt 0:01:43]} Bxd1 {[%emt 0:02:16]} 32. Nxd7 {[%emt 0:00:16]} Bg4 {[%emt 0:00:40]} 33. Nc5 {[%emt 0:00:29]} b5 {[%emt 0:01:03]} 34. Na6 {[%emt 0:01:10]} h6 {[%emt 0:00:41]} 35. Nb4 {[%emt 0:01:06]} c5 {[%emt 0:02:05]} 36. dxc5 {[%emt 0:00:18]} Bc3 {[%emt 0:00:48]} 37. Rd3 {[%emt 0:00:55]} Bxb4 {[%emt 0:00:22]} 38. Rd4 {[%emt 0:00:20]} Bxc5 {[%emt 0:00:00]} 39. Kf2 {[%emt 0:00:18]} Bxd4+ {[%emt 0:00:00]} 40. Kg3 {[%emt 0:00:41]} Be6 {[%emt 0:00:00]} 41. Kf4 {[%emt 0:00:15]} b4 42. Ke4 {[%emt 0:00:25]} Bf6 {[%emt 0:00:00]} 43. Kd3 {[%emt 0:00:25]} b3 {[%emt 0:00:00]} 44. Kd2 {[%emt 0:00:33]} b2 {[%emt 0:00:00]} 45. Kc2 {[%emt 0:00:18]} Bf5+ {[%emt 0:00:00]} 46. Kd2 {[%emt 0:00:38]} b1=Q {[%emt 0:00:00]} 47. Ke3 {[%emt 0:00:22]} Qe4+ {[%emt 0:00:00]} 48. Kf2 {[%emt 0:00:20]} Qd3 {[%emt 0:00:00]} 49. g3 {[%emt 0:00:26]} Rb8 {[%emt 0:00:00]} 50. Ke1 {[%emt 0:01:09]} Qc2 {[%emt 0:00:00]} 51. Kf1 {[%emt 0:00:25]} Rb1# 0-1

[Event "CZE-ch U10 2020"]
[Site "Kouty nad Desnou"]
[Date "2020.03.09"]
[Round "3.7"]
[White "Roubal, Matyas"]
[Black "Bulawa, Adam"]
[Result "0-1"]
[ECO "B28"]
[WhiteElo "1380"]
[BlackElo "1014"]
[Annotator "NA"]
[PlyCount "92"]
[EventDate "2020.03.07"]
[EventCountry "CZE"]
[SourceTitle "playchess.com"]
[Source "ChessBase"]
[SourceQuality "1"]
[TimeControl "5400+30"]

1. e4 {[%emt 0:00:00]} c5 {[%emt 0:00:00]} 2. Nf3 {[%emt 0:00:00]} a6 {[%emt 0:00:00]} 3. Nc3 {[%emt 0:00:00]} Nc6 {[%emt 0:00:18]} 4. g3 {[%emt 0:02:19]} e5 {[%emt 0:00:40]} 5. Bg2 {[%emt 0:00:55]} Nf6 {[%emt 0:00:19]} 6. d3 {[%emt 0:01:04]} Be7 {[%emt 0:00:21]} 7. O-O {[%emt 0:01:09]} d6 {[%emt 0:00:11]} 8. Bg5 {[%emt 0:01:32]} h6 {[%emt 0:00:17]} 9. Bxf6 {[%emt 0:00:14]} Bxf6 {[%emt 0:00:17]} 10. Nd5 {[%emt 0:00:16]} O-O {[%emt 0:00:59]} 11. Nd2 {[%emt 0:12:41]} Re8 {[%emt 0:01:50]} 12. Nc4 {[%emt 0:01:36]} b5 {[%emt 0:03:28]} 13. Nce3 {[%emt 0:01:23]} Ra7 {[%emt 0:05:09]} 14. h4 {[%emt 0:10:14]} Nb4 {[%emt 0:04:42]} 15. Nxb4 {[%emt 0:07:14]} cxb4 {[%emt 0:00:12]} 16. Nd5 {[%emt 0:00:10]} a5 {[%emt 0:00:44]} 17. Qh5 {[%emt 0:04:50]} Be6 {[%emt 0:03:58]} 18. Kh2 {[%emt 0:10:10]} Bxd5 {[%emt 0:08:15]} 19. exd5 {[%emt 0:00:14]} Rc7 {[%emt 0:02:54]} 20. Rac1 {[%emt 0:04:06]} e4 {[%emt 0:06:46]} 21. Bxe4 {[%emt 0:09:21]} Bxb2 {[%emt 0:00:19]} 22. Rce1 {[%emt 0:03:03]} Re5 {[%emt 0:00:57]} 23. Qf3 {[%emt 0:01:32]} Qd7 {[%emt 0:04:29]} 24. g4 {[%emt 0:04:29]} g6 {[%emt 0:07:53]} 25. Qg2 {[%emt 0:02:15]} Qe7 {[%emt 0:03:53]} 26. Qh3 {[%emt 0:03:36]} Rxc2 {[%emt 0:06:12]} 27. Kh1 {[%emt 0:01:36]} Bd4 {[%emt 0:02:11]} 28. f4 {[%emt 0:02:12]} Bc3 {[%emt 0:01:54]} 29. fxe5 {[%emt 0:02:07]} Bxe1 {[%emt 0:00:31]} 30. Rxe1 {[%emt 0:00:05]} Qxe5 {[%emt 0:00:29]} 31. d4 {[%emt 0:02:27]} Qe7 {[%emt 0:01:54]} 32. Qg3 {[%emt 0:01:11]} Rc3 {[%emt 0:00:54]} 33. Qh2 {[%emt 0:02:08]} Kh8 {[%emt 0:02:30]} 34. Kg1 {[%emt 0:00:39]} f5 {[%emt 0:00:45]} 35. Qf4 {[%emt 0:02:36]} fxe4 {[%emt 0:02:42]} 36. Rxe4 {[%emt 0:00:13]} Rc1+ {[%emt 0:01:39]} 37. Kg2 {[%emt 0:01:08]} Rc2+ {[%emt 0:00:17]} 38. Kf1 {[%emt 0:00:17]} Qg7 {[%emt 0:02:26]} 39. Re8+ {[%emt 0:00:28]} Kh7 {[%emt 0:00:18]} 40. Qe3 {[%emt 0:02:18]} Qf7+ {[%emt 0:01:55]} 41. Ke1 {[%emt 0:00:40]} Rc7 {[%emt 0:01:02]} 42. Qe6 {[%emt 0:01:11]} Rc1+ {[%emt 0:04:04]} 43. Ke2 {[%emt 0:00:23]} Qf1+ {[%emt 0:00:45]} 44. Kd2 {[%emt 0:00:10]} Qf4+ {[%emt 0:00:52]} 45. Qe3 {[%emt 0:00:22]} Qxe3+ {[%emt 0:00:59]} 46. Kxe3 {[%emt 0:00:21]} Re1+ {[%emt 0:00:06]} 0-1

[Event "CZE-ch U10 2020"]
[Site "Kouty nad Desnou"]
[Date "2020.03.09"]
[Round "3.8"]
[White "Svadlenka, Michal"]
[Black "Stejskal, Jakub"]
[Result "1-0"]
[ECO "C54"]
[WhiteElo "1309"]
[BlackElo "1557"]
[Annotator "NA RC"]
[PlyCount "45"]
[EventDate "2020.03.07"]
[EventCountry "CZE"]
[SourceTitle "playchess.com"]
[Source "ChessBase"]
[SourceQuality "1"]
[TimeControl "5400+30"]

1. e4 {[%emt 0:00:00]} e5 {[%emt 0:00:00]} 2. Nf3 {[%emt 0:00:07]} Nc6 {[%emt 0:00:46]} 3. Bc4 {[%emt 0:00:30]} Bc5 {[%emt 0:00:52]} 4. c3 {[%emt 0:00:48]} Nf6 {[%emt 0:08:00]} 5. d3 {[%emt 0:02:56]} d6 {[%emt 0:04:12]} 6. Nbd2 {[%emt 0:03:39]} Be6 {[%emt 0:02:31]} 7. Bb3 {[%emt 0:03:30]} O-O {[%emt 0:04:38]} 8. Nf1 {[%emt 0:04:08]} Ng4 {[%emt 0:01:02]} 9. d4 {[%emt 0:02:17]} exd4 {[%emt 0:03:44]} 10. cxd4 {[%emt 0:02:10]} Bxb3 {[%emt 0:07:05]} 11. axb3 {[%emt 0:02:37]} Bb4+ {[%emt 0:10:01]} 12. Bd2 {[%emt 0:02:04]} Bxd2+ {[%emt 0:02:49]} 13. Qxd2 {[%emt 0:02:14]} Re8 {[%emt 0:07:10]} 14. Ng3 {[%emt 0:03:51]} Nf6 {[%emt 0:02:30]} 15. Qf4 {[%emt 0:04:54]} Qe7 {[%emt 0:02:40]} 16. O-O {[%emt 0:04:02]} Nxe4 {[%emt 0:06:21]} 17. Rfe1 {[%emt 0:01:19]} d5 {[%emt 0:04:39]} 18. Rac1 {[%emt 0:04:07]} Rad8 {[%emt 0:09:45]} 19. Ne5 {[%emt 0:05:11]} Nxe5 {[%emt 0:03:24]} 20. dxe5 {[%emt 0:00:52]} Qxe5 {[%emt 0:03:31]} 21. Qxe5 {[%emt 0:01:03]} Rxe5 {[%emt 0:03:20]} 22. Rxc7 {[%emt 0:00:59]} Rb8 {[%emt 0:03:20]} 23. f3 {[%emt 0:01:25]} 1-0

[Event "CZE-ch U10 2020"]
[Site "Kouty nad Desnou"]
[Date "2020.03.09"]
[Round "3.9"]
[White "Komarek, Tobias"]
[Black "Vana, Jan"]
[Result "0-1"]
[ECO "B38"]
[WhiteElo "1235"]
[BlackElo "1268"]
[Annotator "NA RC"]
[PlyCount "98"]
[EventDate "2020.03.07"]
[EventCountry "CZE"]
[SourceTitle "playchess.com"]
[Source "ChessBase"]
[SourceQuality "1"]
[TimeControl "5400+30"]

1. e4 {[%emt 0:00:00]} c5 {[%emt 0:00:01]} 2. Nf3 {[%emt 0:00:00]} Nc6 {[%emt 0:00:28]} 3. d4 {[%emt 0:00:05]} cxd4 {[%emt 0:00:34]} 4. Nxd4 {[%emt 0:00:12]} g6 {[%emt 0:00:50]} 5. c4 {[%emt 0:00:13]} Bg7 {[%emt 0:01:00]} 6. Be3 {[%emt 0:00:12]} Nf6 {[%emt 0:00:59]} 7. Nc3 {[%emt 0:00:09]} O-O {[%emt 0:00:20]} 8. Be2 {[%emt 0:00:15]} Qa5 {[%emt 0:03:26]} 9. O-O {[%emt 0:01:00]} d6 {[%emt 0:00:54]} 10. a3 {[%emt 0:01:55]} Nxd4 {[%emt 0:02:14]} 11. Bxd4 {[%emt 0:00:53]} Be6 {[%emt 0:03:23]} 12. Nd5 {[%emt 0:05:33]} Bxd5 {[%emt 0:01:34]} 13. cxd5 {[%emt 0:00:53]} Nxe4 {[%emt 0:01:31]} 14. Bxg7 {[%emt 0:02:36]} Kxg7 {[%emt 0:00:12]} 15. Re1 {[%emt 0:00:19]} Qb6 {[%emt 0:02:00]} 16. Rf1 {[%emt 0:02:23]} Rac8 {[%emt 0:01:58]} 17. Bf3 {[%emt 0:02:24]} Nf6 {[%emt 0:00:50]} 18. Re1 {[%emt 0:03:03]} Rc7 {[%emt 0:01:41]} 19. Qd2 {[%emt 0:02:06]} Rfc8 {[%emt 0:03:39]} 20. b4 {[%emt 0:03:31]} Rc2 {[%emt 0:01:20]} 21. Qe3 {[%emt 0:01:28]} Qxe3 {[%emt 0:00:09]} 22. Rxe3 {[%emt 0:01:01]} Rc1+ {[%emt 0:00:04]} 23. Re1 {[%emt 0:00:14]} Rxa1 {[%emt 0:00:08]} 24. Rxa1 {[%emt 0:00:10]} Nd7 {[%emt 0:00:22]} 25. Bg4 {[%emt 0:00:37]} Rc7 {[%emt 0:00:42]} 26. Bxd7 {[%emt 0:00:47]} Rxd7 {[%emt 0:00:01]} 27. Rc1 {[%emt 0:00:18]} Kf6 {[%emt 0:00:35]} 28. Rc3 {[%emt 0:02:10]} Ke5 {[%emt 0:00:56]} 29. Rf3 {[%emt 0:00:26]} f6 {[%emt 0:00:16]} 30. Rh3 {[%emt 0:00:21]} h5 {[%emt 0:00:06]} 31. Rg3 {[%emt 0:01:28]} g5 {[%emt 0:00:10]} 32. h4 {[%emt 0:00:59]} g4 {[%emt 0:00:16]} 33. Rd3 {[%emt 0:01:05]} f5 {[%emt 0:00:54]} 34. Kf1 {[%emt 0:01:26]} f4 {[%emt 0:03:28]} 35. Ke2 {[%emt 0:03:41]} Rc7 {[%emt 0:04:44]} 36. g3 {[%emt 0:02:59]} Ke4 {[%emt 0:01:47]} 37. gxf4 {[%emt 0:01:34]} Rc2+ {[%emt 0:00:11]} 38. Rd2 {[%emt 0:00:10]} Rxd2+ {[%emt 0:00:08]} 39. Kxd2 {[%emt 0:00:32]} Kxf4 {[%emt 0:00:02]} 40. Kd3 {[%emt 0:01:49]} Kf3 {[%emt 0:00:35]} 41. Kc4 {[%emt 0:00:51]} Kxf2 {[%emt 0:00:12]} 42. b5 {[%emt 0:00:33]} g3 {[%emt 0:00:07]} 43. Kb4 {[%emt 0:00:31]} g2 {[%emt 0:00:16]} 44. Ka5 {[%emt 0:00:13]} g1=Q {[%emt 0:00:14]} 45. Ka4 {[%emt 0:00:26]} Qd1+ {[%emt 0:00:04]} 46. Kb4 {[%emt 0:00:13]} Qd2+ {[%emt 0:00:05]} 47. Ka4 {[%emt 0:00:14]} Qc2+ {[%emt 0:00:16]} 48. Ka5 {[%emt 0:00:26]} Qc4 {[%emt 0:00:24]} 49. a4 {[%emt 0:00:48]} Qc3# 0-1

[Event "CZE-ch U10 2020"]
[Site "Kouty nad Desnou"]
[Date "2020.03.09"]
[Round "3.10"]
[White "Chernyy, Andrey"]
[Black "Melnikov, Ivan"]
[Result "1/2-1/2"]
[ECO "B01"]
[WhiteElo "1208"]
[BlackElo "1253"]
[Annotator "NA RC"]
[PlyCount "69"]
[EventDate "2020.03.07"]
[EventCountry "CZE"]
[SourceTitle "playchess.com"]
[Source "ChessBase"]
[SourceQuality "1"]
[TimeControl "5400+30"]

1. e4 {[%emt 0:00:00]} d5 2. exd5 {[%emt 0:00:00]} Nf6 {[%emt 0:00:00]} 3. Nc3 {[%emt 0:00:44]} Nxd5 {[%emt 0:00:15]} 4. Nf3 {[%emt 0:00:55]} Nc6 {[%emt 0:01:10]} 5. d4 {[%emt 0:01:53]} Bf5 {[%emt 0:02:01]} 6. a3 {[%emt 0:01:02]} e6 {[%emt 0:01:52]} 7. Be2 {[%emt 0:01:19]} Be7 {[%emt 0:03:07]} 8. O-O {[%emt 0:00:58]} Bf6 {[%emt 0:01:19]} 9. Nxd5 {[%emt 0:00:38]} Qxd5 {[%emt 0:00:15]} 10. Be3 {[%emt 0:00:31]} O-O-O {[%emt 0:01:09]} 11. c3 {[%emt 0:01:07]} h5 {[%emt 0:01:17]} 12. b4 {[%emt 0:01:24]} g5 {[%emt 0:00:51]} 13. b5 {[%emt 0:02:10]} g4 {[%emt 0:05:51]} 14. bxc6 {[%emt 0:04:15]} gxf3 {[%emt 0:00:11]} 15. Bxf3 {[%emt 0:00:26]} Be4 {[%emt 0:00:16]} 16. cxb7+ {[%emt 0:00:37]} Kb8 {[%emt 0:00:28]} 17. Bxe4 {[%emt 0:00:22]} Qxe4 {[%emt 0:00:11]} 18. Re1 {[%emt 0:00:41]} Rdg8 {[%emt 0:01:45]} 19. g3 {[%emt 0:02:39]} Qd5 {[%emt 0:01:04]} 20. Rc1 {[%emt 0:03:34]} Qc4 {[%emt 0:03:29]} 21. Qc2 {[%emt 0:05:00]} h4 {[%emt 0:01:15]} 22. Qe4 {[%emt 0:01:01]} Be7 {[%emt 0:03:07]} 23. Bd2 {[%emt 0:04:29]} Rg6 {[%emt 0:04:57]} 24. Re3 {[%emt 0:04:04]} f5 {[%emt 0:00:43]} 25. Qe5 {[%emt 0:03:22]} Rgh6 {[%emt 0:01:39]} 26. Re2 {[%emt 0:01:16]} Bd6 {[%emt 0:01:07]} 27. Qe3 {[%emt 0:04:04]} Qd5 {[%emt 0:01:53]} 28. c4 {[%emt 0:01:45]} Qc6 {[%emt 0:03:45]} 29. Qd3 {[%emt 0:00:20]} Rg6 {[%emt 0:15:04]} 30. Re3 {[%emt 0:03:10]} hxg3 {[%emt 0:04:11]} 31. fxg3 {[%emt 0:00:34]} Rg4 {[%emt 0:06:45]} 32. d5 {[%emt 0:03:06]} exd5 {[%emt 0:00:21]} 33. cxd5 {[%emt 0:00:29]} Qd7 {[%emt 0:00:27]} 34. Rc4 {[%emt 0:02:42]} Qh7 {[%emt 0:02:03]} 35. Re2 {[%emt 0:01:48]} 1/2-1/2

[Event "CZE-ch U10 2020"]
[Site "Kouty nad Desnou"]
[Date "2020.03.09"]
[Round "3.11"]
[White "Milek, Tobias"]
[Black "Letal, Hynek"]
[Result "1/2-1/2"]
[ECO "B70"]
[WhiteElo "1163"]
[BlackElo "1127"]
[Annotator "NA RC"]
[PlyCount "110"]
[EventDate "2020.03.07"]
[EventCountry "CZE"]
[SourceTitle "playchess.com"]
[Source "ChessBase"]
[SourceQuality "1"]
[TimeControl "5400+30"]

1. e4 {[%emt 0:00:00]} c5 {[%emt 0:00:00]} 2. Nf3 {[%emt 0:00:00]} d6 {[%emt 0:00:00]} 3. d4 {[%emt 0:00:00]} cxd4 {[%emt 0:00:00]} 4. Nxd4 {[%emt 0:00:00]} Nf6 {[%emt 0:00:00]} 5. Nc3 {[%emt 0:00:00]} g6 {[%emt 0:00:00]} 6. g3 {[%emt 0:00:45]} Bg7 {[%emt 0:00:16]} 7. Bg2 {[%emt 0:00:10]} O-O {[%emt 0:00:20]} 8. O-O {[%emt 0:00:12]} Nc6 {[%emt 0:00:19]} 9. Be3 {[%emt 0:00:19]} Bd7 {[%emt 0:00:39]} 10. Re1 {[%emt 0:01:33]} Ng4 {[%emt 0:00:19]} 11. Nxc6 {[%emt 0:01:32]} Bxc6 {[%emt 0:00:18]} 12. Qxg4 {[%emt 0:00:07]} Rc8 {[%emt 0:01:20]} 13. Bd2 {[%emt 0:00:45]} f5 {[%emt 0:00:59]} 14. exf5 {[%emt 0:01:23]} Bxg2 {[%emt 0:01:11]} 15. Kxg2 {[%emt 0:00:21]} Rxf5 {[%emt 0:00:37]} 16. Qe4 {[%emt 0:01:07]} e5 {[%emt 0:05:36]} 17. Qd5+ {[%emt 0:01:15]} Kh8 {[%emt 0:00:39]} 18. Qxb7 {[%emt 0:02:08]} Rc7 {[%emt 0:01:00]} 19. Qe4 {[%emt 0:02:28]} Rcf7 {[%emt 0:00:49]} 20. Rf1 {[%emt 0:00:48]} Qb6 {[%emt 0:01:21]} 21. Nd1 {[%emt 0:01:22]} Qb5 {[%emt 0:04:02]} 22. Ne3 {[%emt 0:05:59]} Qe2 {[%emt 0:04:29]} 23. Be1 {[%emt 0:03:05]} Bh6 {[%emt 0:01:49]} 24. Bd2 {[%emt 0:09:00]} Rxf2+ {[%emt 0:01:57]} 25. Rxf2 {[%emt 0:00:50]} Rxf2+ {[%emt 0:00:09]} 26. Kg1 {[%emt 0:00:57]} Qxd2 {[%emt 0:00:56]} 27. Nf1 {[%emt 0:00:44]} Qxc2 {[%emt 0:01:29]} 28. Qa8+ {[%emt 0:01:49]} Rf8 {[%emt 0:00:49]} 29. Qxa7 {[%emt 0:01:04]} Qxb2 {[%emt 0:02:10]} 30. Re1 {[%emt 0:00:48]} Qc3 {[%emt 0:01:38]} 31. Rb1 {[%emt 0:00:40]} Qc5+ {[%emt 0:01:35]} 32. Qxc5 {[%emt 0:00:14]} dxc5 {[%emt 0:00:08]} 33. Re1 {[%emt 0:00:13]} Re8 {[%emt 0:01:11]} 34. a4 {[%emt 0:00:32]} Kg7 {[%emt 0:00:12]} 35. a5 {[%emt 0:00:14]} Kf6 {[%emt 0:00:06]} 36. g4 {[%emt 0:00:23]} Bf4 {[%emt 0:00:38]} 37. Ne3 {[%emt 0:00:48]} Bxe3+ {[%emt 0:00:23]} 38. Rxe3 {[%emt 0:00:04]} Ra8 {[%emt 0:00:15]} 39. Ra3 {[%emt 0:00:04]} e4 {[%emt 0:00:09]} 40. Kf2 {[%emt 0:00:06]} Ke5 {[%emt 0:00:09]} 41. Ke3 {[%emt 0:00:08]} g5 {[%emt 0:00:32]} 42. a6 {[%emt 0:00:18]} Kd5 {[%emt 0:00:14]} 43. Ra5 {[%emt 0:00:32]} Ra7 {[%emt 0:00:43]} 44. h3 {[%emt 0:00:18]} h6 {[%emt 0:00:06]} 45. Ra4 {[%emt 0:00:06]} c4 {[%emt 0:02:04]} 46. Ra5+ {[%emt 0:00:13]} Kc6 {[%emt 0:00:05]} 47. Kxe4 {[%emt 0:00:22]} c3 {[%emt 0:00:47]} 48. Kd3 {[%emt 0:00:11]} Kb6 {[%emt 0:03:56]} 49. Ra3 {[%emt 0:00:30]} Rd7+ {[%emt 0:01:10]} 50. Kxc3 {[%emt 0:00:36]} Ka7 {[%emt 0:00:05]} 51. Kc2 {[%emt 0:00:47]} Rd6 {[%emt 0:00:28]} 52. Ra4 {[%emt 0:00:47]} Re6 {[%emt 0:01:38]} 53. Kd2 {[%emt 0:00:35]} Rb6 {[%emt 0:00:31]} 54. Kc2 {[%emt 0:00:51]} Rf6 {[%emt 0:00:42]} 55. Ra3 {[%emt 0:00:42]} Rf2+ {[%emt 0:00:22]} 1/2-1/2

[Event "CZE-ch U10 2020"]
[Site "Kouty nad Desnou"]
[Date "2020.03.09"]
[Round "3.12"]
[White "Srba, Daniel"]
[Black "Soucek, Andrej"]
[Result "1-0"]
[ECO "B32"]
[WhiteElo "1145"]
[BlackElo "1043"]
[Annotator "NA RC"]
[PlyCount "115"]
[EventDate "2020.03.07"]
[EventCountry "CZE"]
[SourceTitle "playchess.com"]
[Source "ChessBase"]
[SourceQuality "1"]
[TimeControl "5400+30"]

1. e4 {[%emt 0:00:00]} c5 {[%emt 0:00:00]} 2. Nf3 {[%emt 0:00:59]} Nc6 {[%emt 0:00:26]} 3. d4 {[%emt 0:00:54]} cxd4 {[%emt 0:00:18]} 4. Nxd4 {[%emt 0:01:31]} g6 {[%emt 0:01:21]} 5. b3 {[%emt 0:02:01]} Bg7 {[%emt 0:02:44]} 6. Bb2 {[%emt 0:02:18]} Nf6 {[%emt 0:00:38]} 7. f3 {[%emt 0:01:28]} O-O {[%emt 0:03:39]} 8. Nxc6 {[%emt 0:03:33]} dxc6 {[%emt 0:00:15]} 9. Nc3 {[%emt 0:00:16]} Qxd1+ {[%emt 0:00:26]} 10. Rxd1 {[%emt 0:00:14]} Be6 {[%emt 0:00:23]} 11. Bd3 {[%emt 0:01:12]} Rfd8 {[%emt 0:02:26]} 12. O-O {[%emt 0:00:56]} Bh6 {[%emt 0:03:16]} 13. f4 {[%emt 0:06:04]} Kf8 {[%emt 0:02:42]} 14. e5 {[%emt 0:02:57]} Nd5 {[%emt 0:00:22]} 15. Ne2 {[%emt 0:00:50]} Ne3 {[%emt 0:00:13]} 16. Rde1 {[%emt 0:02:28]} Nxf1 {[%emt 0:00:15]} 17. Rxf1 {[%emt 0:00:14]} Bf5 {[%emt 0:00:45]} 18. Bxf5 {[%emt 0:00:24]} gxf5 {[%emt 0:00:09]} 19. Ng3 {[%emt 0:01:28]} e6 {[%emt 0:00:22]} 20. Nh5 {[%emt 0:00:52]} Rd2 {[%emt 0:00:45]} 21. Bc1 {[%emt 0:04:30]} Rxc2 {[%emt 0:00:17]} 22. h3 {[%emt 0:00:45]} Rxa2 {[%emt 0:00:17]} 23. Be3 {[%emt 0:00:39]} b6 {[%emt 0:00:37]} 24. Rf3 {[%emt 0:00:47]} Rd8 {[%emt 0:00:35]} 25. Kh2 {[%emt 0:00:36]} Rd3 {[%emt 0:00:21]} 26. Nf6 {[%emt 0:00:37]} Re2 {[%emt 0:01:00]} 27. Bc5+ {[%emt 0:00:18]} bxc5 {[%emt 0:00:40]} 28. Rxd3 {[%emt 0:00:06]} Bxf4+ {[%emt 0:00:52]} 29. Kg1 {[%emt 0:00:22]} Bxe5 {[%emt 0:00:48]} 30. Kf1 {[%emt 0:00:37]} Rc2 {[%emt 0:06:37]} 31. Nd7+ {[%emt 0:00:08]} Kg7 {[%emt 0:01:46]} 32. Nxe5 {[%emt 0:00:33]} Rc1+ {[%emt 0:01:09]} 33. Kf2 {[%emt 0:00:38]} Rc2+ {[%emt 0:00:25]} 34. Kf3 {[%emt 0:00:11]} Kf6 {[%emt 0:01:03]} 35. Nxc6 {[%emt 0:00:19]} e5 {[%emt 0:00:36]} 36. Rd6+ {[%emt 0:04:16]} Kg5 {[%emt 0:00:34]} 37. Nxe5 {[%emt 0:00:36]} Rc3+ {[%emt 0:00:58]} 38. Rd3 {[%emt 0:00:10]} Rxd3+ {[%emt 0:00:26]} 39. Nxd3 {[%emt 0:00:18]} Kf6 {[%emt 0:00:46]} 40. Nxc5 {[%emt 0:00:10]} Ke5 {[%emt 0:00:30]} 41. Na6 {[%emt 0:03:44]} h5 {[%emt 0:00:36]} 42. Nb4 {[%emt 0:00:22]} Ke6 {[%emt 0:00:55]} 43. Kf4 {[%emt 0:00:18]} Kf6 {[%emt 0:00:24]} 44. Nc6 {[%emt 0:00:49]} Ke6 {[%emt 0:00:43]} 45. Nxa7 {[%emt 0:00:06]} Kd5 {[%emt 0:00:22]} 46. Kxf5 {[%emt 0:00:32]} Kd4 {[%emt 0:00:21]} 47. Kg5 {[%emt 0:00:18]} Kc3 {[%emt 0:00:20]} 48. Kxh5 {[%emt 0:00:09]} Kxb3 {[%emt 0:00:15]} 49. Kg5 {[%emt 0:00:06]} Kc2 {[%emt 0:00:09]} 50. h4 {[%emt 0:00:17]} Kd3 {[%emt 0:00:09]} 51. h5 {[%emt 0:00:13]} Ke4 {[%emt 0:00:08]} 52. h6 {[%emt 0:00:25]} Ke3 53. h7 {[%emt 0:00:20]} Kf2 {[%emt 0:00:10]} 54. h8=Q {[%emt 0:00:13]} f6+ {[%emt 0:00:08]} 55. Qxf6+ {[%emt 0:00:17]} Kxg2 {[%emt 0:00:13]} 56. Kg4 {[%emt 0:00:18]} Kg1 {[%emt 0:00:28]} 57. Kg3 {[%emt 0:01:21]} Kh1 {[%emt 0:00:18]} 58. Qf1# 1-0

[Event "CZE-ch U10 2020"]
[Site "Kouty nad Desnou"]
[Date "2020.03.09"]
[Round "4.1"]
[White "Gorej, Vojtech"]
[Black "Delgerdalai, Bayarjavkhlan"]
[Result "0-1"]
[ECO "B80"]
[WhiteElo "1360"]
[BlackElo "1553"]
[Annotator "NA"]
[PlyCount "56"]
[EventDate "2020.03.07"]
[EventCountry "CZE"]
[SourceTitle "playchess.com"]
[Source "ChessBase"]
[SourceQuality "1"]
[TimeControl "5400+30"]

1. e4 {[%emt 0:00:00]} c5 {[%emt 0:00:00]} 2. Nf3 {[%emt 0:00:25]} d6 {[%emt 0:00:00]} 3. d4 {[%emt 0:00:22]} cxd4 {[%emt 0:00:02]} 4. Nxd4 {[%emt 0:00:23]} Nf6 {[%emt 0:00:20]} 5. Nc3 {[%emt 0:00:53]} a6 {[%emt 0:00:17]} 6. Be3 {[%emt 0:00:41]} e6 {[%emt 0:00:32]} 7. Qd2 {[%emt 0:01:28]} Be7 {[%emt 0:00:24]} 8. f3 {[%emt 0:01:26]} Qc7 {[%emt 0:01:40]} 9. O-O-O {[%emt 0:00:48]} b5 {[%emt 0:01:19]} 10. Kb1 {[%emt 0:02:14]} Bb7 {[%emt 0:00:51]} 11. g4 {[%emt 0:01:52]} Nc6 {[%emt 0:02:47]} 12. Nxc6 {[%emt 0:02:33]} Bxc6 {[%emt 0:00:34]} 13. h4 {[%emt 0:00:36]} O-O {[%emt 0:04:33]} 14. g5 {[%emt 0:00:56]} Nd7 {[%emt 0:04:24]} 15. h5 {[%emt 0:00:18]} b4 {[%emt 0:02:35]} 16. Ne2 {[%emt 0:00:30]} Ne5 {[%emt 0:01:32]} 17. Bg2 {[%emt 0:02:31]} Nc4 {[%emt 0:02:00]} 18. Qd3 {[%emt 0:00:27]} Bb5 {[%emt 0:01:55]} 19. Qd4 {[%emt 0:03:46]} e5 {[%emt 0:00:26]} 20. Qd5 {[%emt 0:00:27]} Nxe3 {[%emt 0:00:08]} 21. Qb3 {[%emt 0:00:50]} Nxd1 {[%emt 0:02:45]} 22. g6 {[%emt 0:00:09]} Bxe2 {[%emt 0:03:00]} 23. f4 {[%emt 0:00:51]} Nf2 {[%emt 0:01:52]} 24. h6 {[%emt 0:01:44]} Nxh1 {[%emt 0:01:31]} 25. gxh7+ {[%emt 0:00:49]} Kxh7 {[%emt 0:00:33]} 26. hxg7 {[%emt 0:00:17]} Kxg7 {[%emt 0:00:23]} 27. Bxh1 {[%emt 0:00:31]} Rh8 {[%emt 0:00:11]} 28. Qg3+ {[%emt 0:00:26]} Kf8 {[%emt 0:00:08]} 0-1